Workbook

Sheet Form Instructions
A3: Building Tune-up Application
A4: Dominion Energy South Carolina, Inc.
B11: ="Version # "&'Version Tracking'!B2 -> Version # 14.1
A13: Application and Instructions The Building Tune-Up Program is available to qualifying commercial and industrial customers within our service territory. The goal of this program is to help customers identify opportunities to improve the efficiency of major electrical systems in their buildings and reduce energy costs without adversely affecting facility or system operations. The program offers project-by-project funding incentives that cover a portion of a Building Tune-Up study and implementation of measures. We may also provide incentives through other efficiency program offerings to the building owner to offset implementation costs for other recommended, low-cost measures. Building Tune-Up projects must be able to show specific and verifiable energy savings and costs, typically developed by a third-party firm. Incentives will be determined by us on a project-by-project basis. EnergyWise for Your Business incentive payments are subject to project and customer eligibility and funds availability. For each program year (December 1–November 30), EnergyWise for Your Business incentive payments are capped per Customer Federal tax ID number at $100,000 per project type. Throughout the duration of the EnergyWise for Your Business program, Building Tune-Up incentive payments are limited to a one-time payment per facility in an amount not to exceed $0.25/sf. Builiding Tune-Up incentive payments are included in the calculation of the overall $100,000. Details of the program may change without prior notice. Eligible Participants EnergyWise for Your Business is open to all non-residential electric customers within the our service territory, except for customers eligible for Rate 23 and specific large retail customers who have elected to opt out of the Demand Side Management (DSM) programs by notifying us in writing using the Opt-Out form. The criteria for participation in the Building Tune-up program are: • High electric use intensity (per the EPA Portfolio Manager) • Building is over 2 years old (this requirement recognizes that buildings less than 2 years old may not have the requisite full year of utility data that reflect a “fully occupied building and consistent operating pattern) • Building has an Energy Management System (EMS) • Mechanical equipment in relatively good condition (i.e. not near end of life) • Demonstrated management commitment to implement low-/no-cost measures • Storage and warehouse facilities, unless designated as "Cold Storage", are not eligible for the program. If a building has had a building tune-up in the last three years, the building is not eligible for Building Tune-Up incentives. Pre-Approval Requirements All Building Tune-Up projects require pre-approval prior to initiating a Building Tune-Up project. After the application has been pre-approved by us, the applicant will be notified in writing, assigned a project identification number, and given any specific instructions. Questions If you have questions about the program, call 877-784-7234, email SCEnergyExperts@SC.DominionEnergyAccount.com, or visit www.DominionEnergy.com/ForYourBizSC. | B13: Participation Instructions Step 1 - Application Phase Before beginning the application process, the customer and Building Tune-Up Service Provider (BTSP) should contact an EnergyWise representative to discuss the application process, project eligibility, and the customer’s need for Building Tune-Up services. A preliminary walk through is conducted by the BTSP, and an initial benchmarking report referred to as an Opportunity Checklist is completed. A completed Building Tune-Up application and Opportunity Checklist is then submitted to Dominion Energy South Carolina for review. We will evaluate the application and determine if the project should move forward to the Study Phase. Step 2- Study Phase Once we provide pre-approval of the Building Tune-Up application, the BTSP will conduct a more detailed walk-through assessment, quantify building tune-up opportunities and develop a master list of findings. The BTSP will aggregate this information into an Action Plan. The proposed building tune-up measures detailed in the Action Plan will be reviewed with the customer and Dominion Energy South Carolina. Upon final agreement of the Action Plan, the customer and BTSP will move forward to the Implementation Phase. If the study phase does not identify viable no cost/low cost measures, the customer will receive $.05/square foot, to assist with cost of the study phase. Step 3- Implementation Phase In the Implementation Phase, the customer and/or BTSP implements the building tune-up measures identified in the Action Plan. Customer are encouraged to implement identified measures with a payback ≤ 1.5 years and are required to match our contribution for implementation of these measures. We will contribute up to 75% of the cost of the assessment and implementation of low-cost measures. The BTSP shall document savings achievements. The customer will notify us upon completion of the project. We will perform an on-site inspection to ensure the Action Plan was followed and energy savings are being realized. Proof of purchase must include an itemized invoice for all Energy Conservation Measures (ECMs) that may qualify for the EnergyWise for Your Business incentive. Each individual product or model number must include the corresponding costs and quantity. After a thorough review of all documentation, final project approval is issued and the incentive will be processed. Pre-Application Checklist Please confirm that you meet the following eligibility requirements prior to submitting an application for our Building Tune-Up incentives. YES Are you willing to commit up to $0.25/sf for your share of study and measure implementation? Are you able to complete the installation of identified building tune-up measures within six months of receiving an Action Plan? (Incentives may be foregone and/or the full Building Tune-Up service cost incurred to date may be imposed on the customer for non-implementation of measures). Are you willing to commit the necessary time and personnel resources to fully support the Building Tune-Up process? Are you free from planned major system renovations or retrofits? Once an application is received, Dominion Energy South Carolina will evaluate evidence that a cost-effective Building Tune-Up opportunities exist at your facility.

Sheet Calc (hidden)
C1: Incremental Impacts | D1: $$ value | M1: Rates | N1: Base or Off Peak kWh | O1: High Sum kWh | P1: High Win kWh | Q1: High Avg kWh | R1: AVG kWh | S1: Sum Demand (kVA) | T1: Win Demand (kVA) | U1: AVG Demand Value (kW @ 0.9 PF)
A2: Avoided Energy Cost | B2: =VLOOKUP(Input!$D$10,A_Costs!$A$22:$AC$30,Input!D11+1,0) ->  | C2: =Input!H18 -> 0 | D2: =B2*C2/VLOOKUP(Input!D8,Calc!G8:H9,2,0) ->  | G2: Retrofit | H2: 0.5 | M2: 3 - Muni | N2: 0.09737 | R2: =N2 -> 0.09737 | S2: 0 | U2: =S2 -> 0
A3: Avoided Capacity Cost | B3: =HLOOKUP(Input!D11,A_Costs!B32:AC33,2) ->  | C3: =Input!I18 -> 0 | D3: =B3*C3/VLOOKUP(Input!D8,Calc!G8:H9,2,0) ->  | G3: New/ROB | H3: 0.75 | M3: 9 - GS | O3: 0.12105 | P3: 0.10545 | Q3: =(O3/3)+(2*P3/3) -> 0.11065 | R3: =Q3 -> 0.11065 | S3: 3.27 | T3: 0 | U3: =S3*0.85 -> 2.7795
A4: Total Avoided Cost | D4: =SUM(D2:D3) ->  | M4: 19 - GS ConCur TOU | N4: 0.04628 | O4: 0.0908 | P4: 0.06255 | Q4: =(O4/3)+(2*P4/3) -> 0.07196666667 | R4: =AVERAGE(Q4,N4) -> 0.05912333333 | S4: 20.54 | T4: 13.75 | U4: =((S4/3)+(2*T4/3))*0.9 -> 14.412
G5: Payback Threshold | H5: 1.5 | M5: 20 - Med GS | N5: 0.04627 | R5: =N5 -> 0.04627 | S5: 16.23 | U5: =S5*0.85 -> 13.7955
A6: Cost Effective | B6: =IF(D4/Input!L18>=1,"YES","NO") ->  | G6: Incentive Cap | H6: 25000 | M6: 21 - GS TOU | N6: 0.04628 | O6: 0.0908 | P6: 0.06255 | Q6: =(O6/3)+(2*P6/3) -> 0.07196666667 | R6: =AVERAGE(Q6,N6) -> 0.05912333333 | S6: 20.54 | T6: 13.75 | U6: =((S6/3)+(2*T6/3))*0.9 -> 14.412
G7: Implementation and Admin Factor | H7: 0.75 | I7: of Incentive | M7: 21A - Exp GS TOU | N7: 0.04258 | O7: 0.0812 | P7: 0.05479 | Q7: =(O7/3)+(2*P7/3) -> 0.06359333333 | R7: =AVERAGE(Q7,N7) -> 0.05308666667 | S7: 19.69 | T7: 12.37 | U7: =((S7/3)+(2*T7/3))*0.9 -> 13.329
A8: Cust Avg Energy Cost | B8: =VLOOKUP(Input!L12,Calc!M2:U10,6,0) -> 0.04627 | C8: =C2 -> 0 | D8: =B8*C8 -> 0 | G8: Retrofit | H8: =1+(H$7*H2) -> 1.375 | M8: 22 - School | N8: 0.11642 | R8: =N8 -> 0.11642 | S8: 0 | U8: =S8 -> 0
A9: Cust AVG kW Cost | B9: =VLOOKUP(Input!L12,Calc!M2:U10,9,0) -> 13.7955 | C9: =C3 -> 0 | D9: =B9*C9 -> 0 | G9: New/ROB | H9: =1+(H$7*H3) -> 1.5625 | M9: 23 - Industrial | N9: 0.04648 | R9: =N9 -> 0.04648 | S9: 13.67 | U9: =S9 -> 13.67
A10: Total Cust Savings | D10: =SUM(D8:D9) -> 0 | M10: 24 - Lrg GS | N10: 0.04268 | O10: 0.07595 | P10: 0.05592 | Q10: =(O10/3)+(2*P10/3) -> 0.06259666667 | R10: =AVERAGE(Q10,N10) -> 0.05263833333 | S10: 16.56 | T10: 11.58 | U10: =((S10/3)+(2*T10/3))*0.9 -> 11.916
A12: Cust Pre-Rebate payback | D12: =Input!L18/Calc!D10 -> 
A13: Preliminary Incentive | D13: =IF(D12<H5,0,IF(B6="YES",VLOOKUP(Input!D8,Calc!G2:H3,2,0)*Input!L18,0)) -> 
A14: Test Payback | D14: =(Input!L18-Calc!D13)/Calc!D10 -> 
A15: Qualifying Incentive | D15: =IF(B6="NO",0,IF(D14<H5,Input!L18-(Calc!H5*Calc!D10),D13)) -> 
A16: Post Rebate Payback | D16: =(Input!L18-Calc!D15)/Calc!D10 -> 

Sheet A_Costs (hidden)
A3: Energy Avoided Costs ($/kWh)
A4: Energy End-Use | B4: 2011 | C4: 2012 | D4: 2013 | E4: 2014 | F4: 2015 | G4: 2016 | H4: 2017 | I4: 2018 | J4: 2019 | K4: 2020 | L4: 2021 | M4: 2022 | N4: 2023 | O4: 2024 | P4: 2025 | Q4: 2026 | R4: 2027 | S4: 2028 | T4: 2029 | U4: 2030 | V4: 2031 | W4: 2032 | X4: 2033 | Y4: 2034 | Z4: 2035 | AA4: 2036 | AB4: 2037 | AC4: 2038
A5: Lighting-Interior | B5: 0.06220970129 | C5: 0.07661177206 | D5: 0.07602525654 | E5: 0.07869350797 | F5: 0.08848102824 | G5: 0.07675081442 | H5: 0.07847959183 | I5: 0.08387868302 | J5: 0.08830859314 | K5: 0.09297487874 | L5: 0.09789028841 | M5: 0.1030682659 | N5: 0.1085229885 | O5: 0.1142694073 | P5: 0.1203232901 | Q5: 0.1267012666 | R5: 0.1334208755 | S5: 0.1405006155 | T5: 0.1479599978 | U5: 0.1558196025 | V5: 0.1641011375 | W5: 0.1728275012 | X5: 0.1820228487 | Y5: 0.1917126608 | Z5: 0.2019238184 | AA5: 0.2126846798 | AB5: 0.2240251628 | AC5: 0.2359768315
A6: Lighting-Exterior | B6: 0.06108779783 | C6: 0.07476397404 | D6: 0.07425566195 | E6: 0.07733474863 | F6: 0.08644974778 | G6: 0.07561240826 | H6: 0.07761000957 | I6: 0.08256150164 | J6: 0.0867631937 | K6: 0.09118028468 | L6: 0.09582390856 | M6: 0.1007057801 | N6: 0.1058382257 | O6: 0.1112342151 | P6: 0.116907396 | Q6: 0.1228721292 | R6: 0.1291435269 | S6: 0.1357374919 | T6: 0.1426707595 | U6: 0.1499609417 | V6: 0.1576265735 | W6: 0.1656871618 | X6: 0.1741632369 | Y6: 0.1830764067 | Z6: 0.1924494139 | AA6: 0.2023061964 | AB6: 0.2126719505 | AC6: 0.2235731978
A7: Water Heating | B7: 0.0618675174 | C7: 0.07597831475 | D7: 0.07555064269 | E7: 0.07838174616 | F7: 0.08803345417 | G7: 0.07646005457 | H7: 0.07832113567 | I7: 0.08347968914 | J7: 0.08783315356 | K7: 0.09241579378 | L7: 0.09723979607 | M7: 0.1023180016 | N7: 0.107663942 | O7: 0.1132918769 | P7: 0.1192168336 | Q7: 0.1254546487 | R7: 0.1320220122 | S7: 0.1389365141 | T7: 0.1462166934 | U7: 0.15388209 | V7: 0.1619532989 | W7: 0.1704520284 | X7: 0.1794011606 | Y7: 0.1888248155 | Z7: 0.1987484188 | AA7: 0.2091987737 | AB7: 0.2202041358 | AC7: 0.2317942931
A8: Motors/Pumps | B8: 0.0619550975 | C8: 0.07621561728 | D8: 0.0756404222 | E8: 0.07840988781 | F8: 0.08805318543 | G8: 0.07648129738 | H8: 0.07828798162 | I8: 0.08358944359 | J8: 0.08796462733 | K8: 0.09257106413 | L8: 0.09742110452 | M8: 0.1025277658 | N8: 0.1079047684 | O8: 0.1135665744 | P8: 0.1195284279 | Q8: 0.1258063979 | R8: 0.1324174233 | S8: 0.1393793609 | T8: 0.1467110351 | U8: 0.1544322912 | V8: 0.1625640517 | W8: 0.1711283749 | X8: 0.1801485175 | Y8: 0.1896490004 | Z8: 0.1996556781 | AA8: 0.2101958124 | AB8: 0.2212981492 | AC8: 0.2329930009
A9: Office Equipment | B9: 0.06186779914 | C9: 0.07607237141 | D9: 0.07553350647 | E9: 0.07835131708 | F9: 0.08796735214 | G9: 0.07639844913 | H9: 0.07825305803 | I9: 0.08349556705 | J9: 0.0878488017 | K9: 0.09243115123 | L9: 0.09725479631 | M9: 0.1023325721 | N9: 0.1076780039 | O9: 0.1133053443 | P9: 0.1192296131 | Q9: 0.125466639 | R9: 0.1320331035 | S9: 0.1389465873 | T9: 0.1462256197 | U9: 0.1538897297 | V9: 0.1619595014 | W9: 0.1704566306 | X9: 0.1794039864 | Y9: 0.188825675 | Z9: 0.1987471072 | AA9: 0.2091950699 | AB9: 0.2201978018 | AC9: 0.2317850724
A10: Refrigeration | B10: 0.06179872144 | C10: 0.07596081148 | D10: 0.07544150044 | E10: 0.07829354731 | F10: 0.08788153955 | G10: 0.07633031643 | H10: 0.07821653408 | I10: 0.08341962896 | J10: 0.08775644919 | K10: 0.09232080684 | L10: 0.09712475822 | M10: 0.1021810052 | N10: 0.1075029299 | O10: 0.1131046321 | P10: 0.1190009673 | Q10: 0.1252075885 | R10: 0.131740989 | S10: 0.1386185479 | T10: 0.1458585787 | U10: 0.1534803798 | V10: 0.1615042876 | W10: 0.169951734 | X10: 0.1788453051 | Y10: 0.1882088044 | Z10: 0.1980673191 | AA10: 0.2084472904 | AB10: 0.2193765867 | AC10: 0.2308845823
A11: Cooking | B11: 0.06209979021 | C11: 0.07646343792 | D11: 0.07577875997 | E11: 0.07844696351 | F11: 0.08810125342 | G11: 0.07660445964 | H11: 0.07829867164 | I11: 0.08373657228 | J11: 0.08815311141 | K11: 0.09280504458 | L11: 0.0977050559 | M11: 0.1028665206 | N11: 0.1083035434 | O11: 0.1140309981 | P11: 0.1200645707 | Q11: 0.126420804 | R11: 0.1331171448 | S11: 0.1401719937 | T11: 0.1476047585 | U11: 0.1554359094 | V11: 0.1636870376 | W11: 0.1723809181 | X11: 0.1815415749 | Y11: 0.1911943502 | Z11: 0.2013659776 | AA11: 0.2120846596 | AB11: 0.2233801489 | AC11: 0.2352838347
A12: Electric Cooling | B12: 0.06199552942 | C12: 0.07697924709 | D12: 0.0758871841 | E12: 0.07871085389 | F12: 0.08836836353 | G12: 0.07612327902 | H12: 0.07814747705 | I12: 0.08383938834 | J12: 0.08817807512 | K12: 0.09274313863 | L12: 0.09754649423 | M12: 0.1026006903 | N12: 0.107918942 | O12: 0.1135151673 | P12: 0.1194040247 | Q12: 0.1256009527 | R12: 0.132122212 | S12: 0.1389849296 | T12: 0.1462071455 | U12: 0.1538078617 | V12: 0.1618070941 | W12: 0.170225927 | X12: 0.1790865709 | Y12: 0.188412423 | Z12: 0.1982281314 | AA12: 0.2085596625 | AB12: 0.2194343722 | AC12: 0.2308810814
A13: Electric Heating / Cooling | B13: 0.06203600033 | C13: 0.07679662129 | D13: 0.0759382217 | E13: 0.07875043739 | F13: 0.08847887604 | G13: 0.07631743583 | H13: 0.07829678291 | I13: 0.08382902955 | J13: 0.08818480152 | K13: 0.09276885934 | L13: 0.09759327781 | M13: 0.1026707766 | N13: 0.1080147549 | O13: 0.1136393283 | P13: 0.1195593675 | Q13: 0.1257905389 | R13: 0.1323493474 | S13: 0.1392531825 | T13: 0.1465203655 | U13: 0.1541702 | V13: 0.1622230254 | W13: 0.170700273 | X13: 0.1796245247 | Y13: 0.1890195762 | Z13: 0.1989105023 | AA13: 0.2093237264 | AB13: 0.2202870941 | AC13: 0.2318299504
A14: Capacity Avoided Cost ($/kW) | B14: 166.4249743 | C14: 171.4177236 | D14: 176.5602553 | E14: 181.8570629 | F14: 187.3127748 | G14: 192.9321581 | H14: 198.7201228 | I14: 204.6817265 | J14: 210.8221783 | K14: 217.1468437 | L14: 223.661249 | M14: 230.3710864 | N14: 237.282219 | O14: 244.4006856 | P14: 251.7327062 | Q14: 259.2846873 | R14: 267.063228 | S14: 275.0751248 | T14: 283.3273785 | U14: 291.8271999 | V14: 300.5820159 | W14: 309.5994764 | X14: 318.8874607 | Y14: 328.4540845 | Z14: 338.307707 | AA14: 348.4569382 | AB14: 358.9106464 | AC14: 369.6779658
A16: Energy Line Loss Factor | B16: 1.0605
A17: Capacity Line Loss Factor | B17: 1.088
A18: Discount Rate | B18: 0.0859
A20: NPV of Avoided Costs
A21: Energy End-Use / Measure Life | B21: 1 | C21: 2 | D21: 3 | E21: 4 | F21: 5 | G21: 6 | H21: 7 | I21: 8 | J21: 9 | K21: 10 | L21: 11 | M21: 12 | N21: 13 | O21: 14 | P21: 15 | Q21: 16 | R21: 17 | S21: 18 | T21: 19 | U21: 20 | V21: 21 | W21: 22 | X21: 23 | Y21: 24 | Z21: 25 | AA21: 26 | AB21: 27 | AC21: 28
A22: Lighting-Interior | B22: =$B$16*NPV($B$18,$E5:E5) -> 0.07685280891 | C22: =$B$16*NPV($B$18,$E5:F5) -> 0.1564286372 | D22: =$B$16*NPV($B$18,$E5:G5) -> 0.2199945321 | E22: =$B$16*NPV($B$18,$E5:H5) -> 0.2798505852 | F22: =$B$16*NPV($B$18,$E5:I5) -> 0.3387638527 | G22: =$B$16*NPV($B$18,$E5:J5) -> 0.3958820694 | H22: =$B$16*NPV($B$18,$E5:K5) -> 0.4512613693 | I22: =$B$16*NPV($B$18,$E5:L5) -> 0.5049560935 | J22: =$B$16*NPV($B$18,$E5:M5) -> 0.5570188483 | K22: =$B$16*NPV($B$18,$E5:N5) -> 0.6075005616 | L22: =$B$16*NPV($B$18,$E5:O5) -> 0.6564505376 | M22: =$B$16*NPV($B$18,$E5:P5) -> 0.7039165091 | N22: =$B$16*NPV($B$18,$E5:Q5) -> 0.7499446887 | O22: =$B$16*NPV($B$18,$E5:R5) -> 0.7945798178 | P22: =$B$16*NPV($B$18,$E5:S5) -> 0.8378652145 | Q22: =$B$16*NPV($B$18,$E5:T5) -> 0.8798428198 | R22: =$B$16*NPV($B$18,$E5:U5) -> 0.9205532415 | S22: =$B$16*NPV($B$18,$E5:V5) -> 0.9600357983 | T22: =$B$16*NPV($B$18,$E5:W5) -> 0.9983285604 | U22: =$B$16*NPV($B$18,$E5:X5) -> 1.035468391 | V22: =$B$16*NPV($B$18,$E5:Y5) -> 1.071490984 | W22: =$B$16*NPV($B$18,$E5:Z5) -> 1.106430903 | X22: =$B$16*NPV($B$18,$E5:AA5) -> 1.140321617 | Y22: =$B$16*NPV($B$18,$E5:AB5) -> 1.173195536 | Z22: =$B$16*NPV($B$18,$E5:AC5) -> 1.205084045 | AA22: =$B$16*NPV($B$18,$E5:AD5) -> 1.205084045 | AB22: =$B$16*NPV($B$18,$E5:AE5) -> 1.205084045 | AC22: =$B$16*NPV($B$18,$E5:AF5) -> 1.205084045
A23: Lighting-Exterior | B23: =$B$16*NPV($B$18,$E6:E6) -> 0.07552583196 | C23: =$B$16*NPV($B$18,$E6:F6) -> 0.1532748186 | D23: =$B$16*NPV($B$18,$E6:G6) -> 0.2158978727 | E23: =$B$16*NPV($B$18,$E6:H6) -> 0.275090699 | F23: =$B$16*NPV($B$18,$E6:I6) -> 0.3330788272 | G23: =$B$16*NPV($B$18,$E6:J6) -> 0.3891974758 | H23: =$B$16*NPV($B$18,$E6:K6) -> 0.4435078487 | I23: =$B$16*NPV($B$18,$E6:L6) -> 0.4960691234 | J23: =$B$16*NPV($B$18,$E6:M6) -> 0.5469385185 | K23: =$B$16*NPV($B$18,$E6:N6) -> 0.5961713588 | L23: =$B$16*NPV($B$18,$E6:O6) -> 0.6438211392 | M23: =$B$16*NPV($B$18,$E6:P6) -> 0.6899395849 | N23: =$B$16*NPV($B$18,$E6:Q6) -> 0.7345767111 | O23: =$B$16*NPV($B$18,$E6:R6) -> 0.7777808797 | P23: =$B$16*NPV($B$18,$E6:S6) -> 0.8195988545 | Q23: =$B$16*NPV($B$18,$E6:T6) -> 0.8600758544 | R23: =$B$16*NPV($B$18,$E6:U6) -> 0.8992556051 | S23: =$B$16*NPV($B$18,$E6:V6) -> 0.9371803887 | T23: =$B$16*NPV($B$18,$E6:W6) -> 0.9738910918 | U23: =$B$16*NPV($B$18,$E6:X6) -> 1.009427252 | V23: =$B$16*NPV($B$18,$E6:Y6) -> 1.043827103 | W23: =$B$16*NPV($B$18,$E6:Z6) -> 1.077127617 | X23: =$B$16*NPV($B$18,$E6:AA6) -> 1.109364548 | Y23: =$B$16*NPV($B$18,$E6:AB6) -> 1.140572473 | Z23: =$B$16*NPV($B$18,$E6:AC6) -> 1.170784828 | AA23: =$B$16*NPV($B$18,$E6:AD6) -> 1.170784828 | AB23: =$B$16*NPV($B$18,$E6:AE6) -> 1.170784828 | AC23: =$B$16*NPV($B$18,$E6:AF6) -> 1.170784828
A24: Water Heating | B24: =$B$16*NPV($B$18,$E7:E7) -> 0.07654833944 | C24: =$B$16*NPV($B$18,$E7:F7) -> 0.1557216398 | D24: =$B$16*NPV($B$18,$E7:G7) -> 0.2190467242 | E24: =$B$16*NPV($B$18,$E7:H7) -> 0.2787819234 | F24: =$B$16*NPV($B$18,$E7:I7) -> 0.3374149524 | G24: =$B$16*NPV($B$18,$E7:J7) -> 0.3942256537 | H24: =$B$16*NPV($B$18,$E7:K7) -> 0.4492719418 | I24: =$B$16*NPV($B$18,$E7:L7) -> 0.5026098583 | J24: =$B$16*NPV($B$18,$E7:M7) -> 0.5542936329 | K24: =$B$16*NPV($B$18,$E7:N7) -> 0.604375743 | L24: =$B$16*NPV($B$18,$E7:O7) -> 0.652906971 | M24: =$B$16*NPV($B$18,$E7:P7) -> 0.6999364598 | N24: =$B$16*NPV($B$18,$E7:Q7) -> 0.7455117666 | O24: =$B$16*NPV($B$18,$E7:R7) -> 0.7896789146 | P24: =$B$16*NPV($B$18,$E7:S7) -> 0.8324824434 | Q24: =$B$16*NPV($B$18,$E7:T7) -> 0.8739654572 | R24: =$B$16*NPV($B$18,$E7:U7) -> 0.9141696721 | S24: =$B$16*NPV($B$18,$E7:V7) -> 0.9531354612 | T24: =$B$16*NPV($B$18,$E7:W7) -> 0.9909018985 | U24: =$B$16*NPV($B$18,$E7:X7) -> 1.027506801 | V24: =$B$16*NPV($B$18,$E7:Y7) -> 1.062986771 | W24: =$B$16*NPV($B$18,$E7:Z7) -> 1.097377235 | X24: =$B$16*NPV($B$18,$E7:AA7) -> 1.130712479 | Y24: =$B$16*NPV($B$18,$E7:AB7) -> 1.163025693 | Z24: =$B$16*NPV($B$18,$E7:AC7) -> 1.194348998 | AA24: =$B$16*NPV($B$18,$E7:AD7) -> 1.194348998 | AB24: =$B$16*NPV($B$18,$E7:AE7) -> 1.194348998 | AC24: =$B$16*NPV($B$18,$E7:AF7) -> 1.194348998
A25: Motors/Pumps | B25: =$B$16*NPV($B$18,$E8:E8) -> 0.07657582284 | C25: =$B$16*NPV($B$18,$E8:F8) -> 0.1557668686 | D25: =$B$16*NPV($B$18,$E8:G8) -> 0.2191095465 | E25: =$B$16*NPV($B$18,$E8:H8) -> 0.2788194593 | F25: =$B$16*NPV($B$18,$E8:I8) -> 0.3375295758 | G25: =$B$16*NPV($B$18,$E8:J8) -> 0.3944253146 | H25: =$B$16*NPV($B$18,$E8:K8) -> 0.4495640875 | I25: =$B$16*NPV($B$18,$E8:L8) -> 0.5030014552 | J25: =$B$16*NPV($B$18,$E8:M8) -> 0.5547911878 | K25: =$B$16*NPV($B$18,$E8:N8) -> 0.6049853232 | L25: =$B$16*NPV($B$18,$E8:O8) -> 0.6536342243 | M25: =$B$16*NPV($B$18,$E8:P8) -> 0.700786633 | N25: =$B$16*NPV($B$18,$E8:Q8) -> 0.7464897236 | O25: =$B$16*NPV($B$18,$E8:R8) -> 0.790789154 | P25: =$B$16*NPV($B$18,$E8:S8) -> 0.8337291149 | Q25: =$B$16*NPV($B$18,$E8:T8) -> 0.875352378 | R25: =$B$16*NPV($B$18,$E8:U8) -> 0.915700342 | S25: =$B$16*NPV($B$18,$E8:V8) -> 0.9548130775 | T25: =$B$16*NPV($B$18,$E8:W8) -> 0.9927293704 | U25: =$B$16*NPV($B$18,$E8:X8) -> 1.029486764 | V25: =$B$16*NPV($B$18,$E8:Y8) -> 1.065121597 | W25: =$B$16*NPV($B$18,$E8:Z8) -> 1.099669048 | X25: =$B$16*NPV($B$18,$E8:AA8) -> 1.133163168 | Y25: =$B$16*NPV($B$18,$E8:AB8) -> 1.165636919 | Z25: =$B$16*NPV($B$18,$E8:AC8) -> 1.197122211 | AA25: =$B$16*NPV($B$18,$E8:AD8) -> 1.197122211 | AB25: =$B$16*NPV($B$18,$E8:AE8) -> 1.197122211 | AC25: =$B$16*NPV($B$18,$E8:AF8) -> 1.197122211
A26: Office Equipment | B26: =$B$16*NPV($B$18,$E9:E9) -> 0.07651862212 | C26: =$B$16*NPV($B$18,$E9:F9) -> 0.1556324733 | D26: =$B$16*NPV($B$18,$E9:G9) -> 0.2189065354 | E26: =$B$16*NPV($B$18,$E9:H9) -> 0.2785898121 | F26: =$B$16*NPV($B$18,$E9:I9) -> 0.3372339931 | G26: =$B$16*NPV($B$18,$E9:J9) -> 0.3940548156 | H26: =$B$16*NPV($B$18,$E9:K9) -> 0.4491102512 | I26: =$B$16*NPV($B$18,$E9:L9) -> 0.5024563957 | J26: =$B$16*NPV($B$18,$E9:M9) -> 0.5541475303 | K26: =$B$16*NPV($B$18,$E9:N9) -> 0.6042361815 | L26: =$B$16*NPV($B$18,$E9:O9) -> 0.6527731786 | M26: =$B$16*NPV($B$18,$E9:P9) -> 0.6998077087 | N26: =$B$16*NPV($B$18,$E9:Q9) -> 0.7453873714 | O26: =$B$16*NPV($B$18,$E9:R9) -> 0.7895582299 | P26: =$B$16*NPV($B$18,$E9:S9) -> 0.8323648621 | Q26: =$B$16*NPV($B$18,$E9:T9) -> 0.8738504083 | R26: =$B$16*NPV($B$18,$E9:U9) -> 0.9140566193 | S26: =$B$16*NPV($B$18,$E9:V9) -> 0.9530239006 | T26: =$B$16*NPV($B$18,$E9:W9) -> 0.9907913576 | U26: =$B$16*NPV($B$18,$E9:X9) -> 1.027396837 | V26: =$B$16*NPV($B$18,$E9:Y9) -> 1.062876969 | W26: =$B$16*NPV($B$18,$E9:Z9) -> 1.097267205 | X26: =$B$16*NPV($B$18,$E9:AA9) -> 1.130601859 | Y26: =$B$16*NPV($B$18,$E9:AB9) -> 1.162914143 | Z26: =$B$16*NPV($B$18,$E9:AC9) -> 1.194236203 | AA26: =$B$16*NPV($B$18,$E9:AD9) -> 1.194236203 | AB26: =$B$16*NPV($B$18,$E9:AE9) -> 1.194236203 | AC26: =$B$16*NPV($B$18,$E9:AF9) -> 1.194236203
A27: Refrigeration | B27: =$B$16*NPV($B$18,$E10:E10) -> 0.07646220363 | C27: =$B$16*NPV($B$18,$E10:F10) -> 0.1554988789 | D27: =$B$16*NPV($B$18,$E10:G10) -> 0.2187165127 | E27: =$B$16*NPV($B$18,$E10:H10) -> 0.2783719327 | F27: =$B$16*NPV($B$18,$E10:I10) -> 0.3369627777 | G27: =$B$16*NPV($B$18,$E10:J10) -> 0.3937238663 | H27: =$B$16*NPV($B$18,$E10:K10) -> 0.4487135767 | I27: =$B$16*NPV($B$18,$E10:L10) -> 0.5019883927 | J27: =$B$16*NPV($B$18,$E10:M10) -> 0.5536029665 | K27: =$B$16*NPV($B$18,$E10:N10) -> 0.6036101785 | L27: =$B$16*NPV($B$18,$E10:O10) -> 0.6520611957 | M27: =$B$16*NPV($B$18,$E10:P10) -> 0.6990055281 | N27: =$B$16*NPV($B$18,$E10:Q10) -> 0.7444910826 | O27: =$B$16*NPV($B$18,$E10:R10) -> 0.788564216 | P27: =$B$16*NPV($B$18,$E10:S10) -> 0.8312697859 | Q27: =$B$16*NPV($B$18,$E10:T10) -> 0.8726511993 | R27: =$B$16*NPV($B$18,$E10:U10) -> 0.9127504608 | S27: =$B$16*NPV($B$18,$E10:V10) -> 0.9516082183 | T27: =$B$16*NPV($B$18,$E10:W10) -> 0.9892638071 | U27: =$B$16*NPV($B$18,$E10:X10) -> 1.025755294 | V27: =$B$16*NPV($B$18,$E10:Y10) -> 1.061119516 | W27: =$B$16*NPV($B$18,$E10:Z10) -> 1.095392125 | X27: =$B$16*NPV($B$18,$E10:AA10) -> 1.128607623 | Y27: =$B$16*NPV($B$18,$E10:AB10) -> 1.1607994 | Z27: =$B$16*NPV($B$18,$E10:AC10) -> 1.191999772 | AA27: =$B$16*NPV($B$18,$E10:AD10) -> 1.191999772 | AB27: =$B$16*NPV($B$18,$E10:AE10) -> 1.191999772 | AC27: =$B$16*NPV($B$18,$E10:AF10) -> 1.191999772
A28: Cooking | B28: =$B$16*NPV($B$18,$E11:E11) -> 0.07661203131 | C28: =$B$16*NPV($B$18,$E11:F11) -> 0.1558463073 | D28: =$B$16*NPV($B$18,$E11:G11) -> 0.2192909896 | E28: =$B$16*NPV($B$18,$E11:H11) -> 0.2790090556 | F28: =$B$16*NPV($B$18,$E11:I11) -> 0.3378225097 | G28: =$B$16*NPV($B$18,$E11:J11) -> 0.3948401605 | H28: =$B$16*NPV($B$18,$E11:K11) -> 0.4501183009 | I28: =$B$16*NPV($B$18,$E11:L11) -> 0.5037114215 | J28: =$B$16*NPV($B$18,$E11:M11) -> 0.5556722689 | K28: =$B$16*NPV($B$18,$E11:N11) -> 0.6060519028 | L28: =$B$16*NPV($B$18,$E11:O11) -> 0.6548997506 | M28: =$B$16*NPV($B$18,$E11:P11) -> 0.7022636607 | N28: =$B$16*NPV($B$18,$E11:Q11) -> 0.7481899535 | O28: =$B$16*NPV($B$18,$E11:R11) -> 0.7927234713 | P28: =$B$16*NPV($B$18,$E11:S11) -> 0.8359076264 | Q28: =$B$16*NPV($B$18,$E11:T11) -> 0.877784447 | R28: =$B$16*NPV($B$18,$E11:U11) -> 0.9183946226 | S28: =$B$16*NPV($B$18,$E11:V11) -> 0.9577775474 | T28: =$B$16*NPV($B$18,$E11:W11) -> 0.9959713617 | U28: =$B$16*NPV($B$18,$E11:X11) -> 1.033012993 | V28: =$B$16*NPV($B$18,$E11:Y11) -> 1.068938196 | W28: =$B$16*NPV($B$18,$E11:Z11) -> 1.103781589 | X28: =$B$16*NPV($B$18,$E11:AA11) -> 1.137576692 | Y28: =$B$16*NPV($B$18,$E11:AB11) -> 1.17035596 | Z28: =$B$16*NPV($B$18,$E11:AC11) -> 1.202150821 | AA28: =$B$16*NPV($B$18,$E11:AD11) -> 1.202150821 | AB28: =$B$16*NPV($B$18,$E11:AE11) -> 1.202150821 | AC28: =$B$16*NPV($B$18,$E11:AF11) -> 1.202150821
A29: Electric Cooling | B29: =$B$16*NPV($B$18,$E12:E12) -> 0.0768697491 | C29: =$B$16*NPV($B$18,$E12:F12) -> 0.1563442518 | D29: =$B$16*NPV($B$18,$E12:G12) -> 0.2193904149 | E29: =$B$16*NPV($B$18,$E12:H12) -> 0.2789931654 | F29: =$B$16*NPV($B$18,$E12:I12) -> 0.3378788337 | G29: =$B$16*NPV($B$18,$E12:J12) -> 0.3949126311 | H29: =$B$16*NPV($B$18,$E12:K12) -> 0.450153898 | I29: =$B$16*NPV($B$18,$E12:L12) -> 0.5036600444 | J29: =$B$16*NPV($B$18,$E12:M12) -> 0.5554866132 | K29: =$B$16*NPV($B$18,$E12:N12) -> 0.6056873418 | L29: =$B$16*NPV($B$18,$E12:O12) -> 0.6543142215 | M29: =$B$16*NPV($B$18,$E12:P12) -> 0.7014175547 | N29: =$B$16*NPV($B$18,$E12:Q12) -> 0.747046011 | O29: =$B$16*NPV($B$18,$E12:R12) -> 0.7912466803 | P29: =$B$16*NPV($B$18,$E12:S12) -> 0.8340651249 | Q29: =$B$16*NPV($B$18,$E12:T12) -> 0.8755454299 | R29: =$B$16*NPV($B$18,$E12:U12) -> 0.9157302514 | S29: =$B$16*NPV($B$18,$E12:V12) -> 0.9546608638 | T29: =$B$16*NPV($B$18,$E12:W12) -> 0.9923772046 | U29: =$B$16*NPV($B$18,$E12:X12) -> 1.028917919 | V29: =$B$16*NPV($B$18,$E12:Y12) -> 1.064320401 | W29: =$B$16*NPV($B$18,$E12:Z12) -> 1.098620836 | X29: =$B$16*NPV($B$18,$E12:AA12) -> 1.13185424 | Y29: =$B$16*NPV($B$18,$E12:AB12) -> 1.164054497 | Z29: =$B$16*NPV($B$18,$E12:AC12) -> 1.195254396 | AA29: =$B$16*NPV($B$18,$E12:AD12) -> 1.195254396 | AB29: =$B$16*NPV($B$18,$E12:AE12) -> 1.195254396 | AC29: =$B$16*NPV($B$18,$E12:AF12) -> 1.195254396
A30: Electric Heating / Cooling | B30: =$B$16*NPV($B$18,$E13:E13) -> 0.07690840672 | C30: =$B$16*NPV($B$18,$E13:F13) -> 0.1564822994 | D30: =$B$16*NPV($B$18,$E13:G13) -> 0.2196892653 | E30: =$B$16*NPV($B$18,$E13:H13) -> 0.2794058908 | F30: =$B$16*NPV($B$18,$E13:I13) -> 0.3382842835 | G30: =$B$16*NPV($B$18,$E13:J13) -> 0.3953224315 | H30: =$B$16*NPV($B$18,$E13:K13) -> 0.4505790186 | I30: =$B$16*NPV($B$18,$E13:L13) -> 0.5041108267 | J30: =$B$16*NPV($B$18,$E13:M13) -> 0.5559727981 | K30: =$B$16*NPV($B$18,$E13:N13) -> 0.6062180961 | L30: =$B$16*NPV($B$18,$E13:O13) -> 0.654898163 | M30: =$B$16*NPV($B$18,$E13:P13) -> 0.702062777 | N30: =$B$16*NPV($B$18,$E13:Q13) -> 0.7477601063 | O30: =$B$16*NPV($B$18,$E13:R13) -> 0.7920367623 | P30: =$B$16*NPV($B$18,$E13:S13) -> 0.8349378502 | Q30: =$B$16*NPV($B$18,$E13:T13) -> 0.8765070186 | R30: =$B$16*NPV($B$18,$E13:U13) -> 0.916786507 | S30: =$B$16*NPV($B$18,$E13:V13) -> 0.955817192 | T30: =$B$16*NPV($B$18,$E13:W13) -> 0.9936386319 | U30: =$B$16*NPV($B$18,$E13:X13) -> 1.03028911 | V30: =$B$16*NPV($B$18,$E13:Y13) -> 1.065805675 | W30: =$B$16*NPV($B$18,$E13:Z13) -> 1.100224185 | X30: =$B$16*NPV($B$18,$E13:AA13) -> 1.13357934 | Y30: =$B$16*NPV($B$18,$E13:AB13) -> 1.165904727 | Z30: =$B$16*NPV($B$18,$E13:AC13) -> 1.197232851 | AA30: =$B$16*NPV($B$18,$E13:AD13) -> 1.197232851 | AB30: =$B$16*NPV($B$18,$E13:AE13) -> 1.197232851 | AC30: =$B$16*NPV($B$18,$E13:AF13) -> 1.197232851
B32: 1 | C32: 2 | D32: 3 | E32: 4 | F32: 5 | G32: 6 | H32: 7 | I32: 8 | J32: 9 | K32: 10 | L32: 11 | M32: 12 | N32: 13 | O32: 14 | P32: 15 | Q32: 16 | R32: 17 | S32: 18 | T32: 19 | U32: 20 | V32: 21 | W32: 22 | X32: 23 | Y32: 24 | Z32: 25 | AA32: 26 | AB32: 27 | AC32: 28
A33: Capacity Avoided Cost ($/kW) | B33: =$B$17*NPV($B$18,$E14:E14) -> 182.2087526 | C33: =$B$17*NPV($B$18,$E14:F14) -> 355.0377564 | D33: =$B$17*NPV($B$18,$E14:G14) -> 518.9698624 | E33: =$B$17*NPV($B$18,$E14:H14) -> 674.4630655 | F33: =$B$17*NPV($B$18,$E14:I14) -> 821.9517837 | G33: =$B$17*NPV($B$18,$E14:J14) -> 961.8480723 | H33: =$B$17*NPV($B$18,$E14:K14) -> 1094.542775 | I33: =$B$17*NPV($B$18,$E14:L14) -> 1220.406614 | J33: =$B$17*NPV($B$18,$E14:M14) -> 1339.79123 | K33: =$B$17*NPV($B$18,$E14:N14) -> 1453.030161 | L33: =$B$17*NPV($B$18,$E14:O14) -> 1560.439774 | M33: =$B$17*NPV($B$18,$E14:P14) -> 1662.32015 | N33: =$B$17*NPV($B$18,$E14:Q14) -> 1758.955925 | O33: =$B$17*NPV($B$18,$E14:R14) -> 1850.617081 | P33: =$B$17*NPV($B$18,$E14:S14) -> 1937.559699 | Q33: =$B$17*NPV($B$18,$E14:T14) -> 2020.026683 | R33: =$B$17*NPV($B$18,$E14:U14) -> 2098.248428 | S33: =$B$17*NPV($B$18,$E14:V14) -> 2172.443471 | T33: =$B$17*NPV($B$18,$E14:W14) -> 2242.819099 | U33: =$B$17*NPV($B$18,$E14:X14) -> 2309.571928 | V33: =$B$17*NPV($B$18,$E14:Y14) -> 2372.888452 | W33: =$B$17*NPV($B$18,$E14:Z14) -> 2432.945566 | X33: =$B$17*NPV($B$18,$E14:AA14) -> 2489.911058 | Y33: =$B$17*NPV($B$18,$E14:AB14) -> 2543.944078 | Z33: =$B$17*NPV($B$18,$E14:AC14) -> 2595.195584 | AA33: =$B$17*NPV($B$18,$E14:AD14) -> 2595.195584 | AB33: =$B$17*NPV($B$18,$E14:AE14) -> 2595.195584 | AC33: =$B$17*NPV($B$18,$E14:AF14) -> 2595.195584

Sheet Customer Information
A1: Fill in Blue and Orange Cells Only!
A2: PROJECT INFORMATION
A3: Application Date | K3: Expected Completion Date
A4: Company Name | K4: Electric Account #
A5: Street Address (of the facility) | K5: Customer Federal Tax ID
A6: City | H6: State | I6: SC | K6: Zip
A7: Building Type (select one)
L9: Please indicate "other" type:
A10: Project Type
A12: CUSTOMER CONTACT INFORMATION
A13: Mailing Address
A14: (where all correspondence will be mailed, including incentive check if payment is to the customer)
A15: City | H15: State | K15: Zip
A16: Contact Person | K16: Title
A17: Telephone No. | H17: Fax No. | K17: Email
A19: BUILDING TUNE-UP SERVICE PROVIDER INFORMATION
A20: Company Name
A21: Street Address
A22: City | H22: State | K22: Zip
A23: Contact Person | K23: Title
A24: Telephone No. | H24: Fax No. | K24: Email
A26: Please indicate if the Customer or Building Tune-Up Service Provider should be primary point of contact for this project. If another party should be primary point of contact, please indicate below:
A27: Customer BTSP Other (fill out below)
A28: PRIMARY POINT OF CONTACT (IF APPLICABLE)
A29: Company Name
A30: Street Address
A31: City | H31: State | K31: Zip
A32: Contact Person | K32: Title
A33: Telephone No. | H33: Fax No. | K33: Email
A35: PAYMENT INFORMATION
A36: Payment to:
A37: Federal Tax ID # (of recipient)
A38: Tax Status of Recipient (select one)
A40: Customer Name | K40: Title
A41: Customer Signature (if payment to contractor, Customer must type his/her name to the right and check the box below) | K41: Date (XX/XX/XXXX)
B42: I understand and intend that my electronic, PDF or facsimile signature be accepted and have the same force and effect as an original signature.
A43: Dominion Energy South Carolina, Inc. Custom Application - Electronic Version | O43: ="Version # "&'Version Tracking'!B2 -> Version # 14.1

Sheet Terms and Conditions
A1: Dominion Energy South Carolina, Inc.
A2: Terms and Conditions
D5: .
B8: ="Version # "&'Version Tracking'!B2 -> Version # 14.1

Sheet Project Information
A1: Fill in Blue and Orange Cells Only!
A2: FACILITY INFORMATION
A3: Year of Construction: | K3: Number of Floors:
A4: Total Floor Area (sq. ft.): | K4: Total Conditioned Area (sq. ft.):
A5: Annual kWh Usage: | K5: Peak kW and Month Occuring:
A6: HVAC INFORMATION
A7: Check all of the HVAC system(s) in the facility.
A8: Cooling Systems | E8: Heating Systems | N8: Ventilaton & Distribution | U8: yes
U9: no
A11: FACILITY CONTROL SYSTEMS
A12: Age of Energy Management Controls System (EMCS) | L12: Capable of trending and storing multiple points?
A13: Components and systems controlled by digital direct controls (DDC):
A16: Components controlled (not actuated) by pneumatics:
A19: CUSTOMER ACKNOWLEDGMENT
A20: Authorized Representative | I20: Title | K20: Title:
I21: Date (XX/XX/XXXX)
B22: By checking this box and typing my name, I hereby certify that all statements made on this application are correct to the best of my knowledge and that I have read and agree to the Terms and Conditions. Furthermore, I understand and intend that my electronic, PDF or facsimile signature be accepted and have the same force and effect as an original signature.
A23: Custom Application - Electronic Version | O23: ="Version # "&'Version Tracking'!B2 -> Version # 14.1

Sheet Input (hidden)
F2: Custom Program Measure Qualification Tool
G3: ="Version # "&'Version Tracking'!B2 -> Version # 14.1 | K3: Date: | L3: 2012-02-29
C4: Copyright © 2011 ICF Resources, LLC, All Rights Reserved. Do not copy, distribute or quote without ICF’s written permission.
B6: General Project Information | G6: SCE&G Project Number:
B7: Project Name: | G7: Customer Name:
B8: Project Type: | G8: Project Address:
B9: Measure Name: | G9: Project City:
B10: Measure Category: | G10: Customer Contact: | K10: Title:
B11: Measure Life: | G11: Phone: | J11: Email:
G12: Electric Account No: | K12: SCE&G Rate: | L12: 20 - Med GS
B14: Peak Demand Definition The highest estimated kW demand during the time period of: 1:00 PM - 9:00 PM on non-holiday weekdays during the months of June - September | F14: Measure Impacts and Costs | H14: Annualized kWh Usage | I14: Peak Demand (kW) | J14: Estimated Costs
J15: Labor and Materials | K15: Equipment | L15: Total
F16: Baseline State | L16: =SUM(J16:K16) -> 0
F17: Efficient State | L17: =SUM(J17:K17) -> 0
F18: Incremental | H18: =H16-H17 -> 0 | I18: =I16-I17 -> 0 | J18: =J17-J16 -> 0 | K18: =K17-K16 -> 0 | L18: =L17-L16 -> 0
F19: Avoided Cost Value | H19: =IF(H18=0,"",Calc!D2) ->  | I19: =IF(I18=0,"",Calc!D3) ->  | L19: =SUM(H19:I19) -> 0
B21: NOTES: | H21: Pre-incentive Simple Payback: | K21: =IF(L19=0,"",Calc!D12) -> 
H22: Qualifying Incentive: | K22: =IF(L19=0,"",IF(Calc!D15>0,Calc!D15," ")) -> 
H23: Post-incentive Simple Payback: | K23: =IF(L19=0,"",Calc!D16) -> 
H24: Approved Incentive:
H25: Total kWh Saved: | K25: =H18 -> 0
H26: Summer Peak kW: | K26: =I18 -> 0

Sheet Version Tracking (hidden)
A2: current | B2: =LOOKUP(2,1/(B1:B50001<>""),B1:B50001) -> 14.1
B3: Version | C3: Notes | D3: Date | E3: Updated By
B4: 1 | C4: Creation of Excel BT Application | D4: 2017-02-06 | E4: Joy Zins
B5: 1.1 | C5: Revised incentive language | D5: 2018-03-27 | E5: Rick Campana
B6: 10.1 | C6: Updated Dominion Branding and T&Cs | D6: 2020-08-28 | E6: JSE
B7: 10.2 | C7: Updated Eligibilty and T&Cs - 100K/project type | D7: 2021-02-03 | E7: JSE
B8: 10.4 | C8: Updated Eligibilty, T&Cs, invoice rqmts, & version numberfor ap syncing | D8: 2022-08-08 | E8: Liv Stewart
B9: 10.5 | C9: Updated email to dominionenergy.com | D9: 2023-09-13 | E9: JSE
B10: 14.1 | D10: 2023-11-15 | E10: TKJ
